fUSD/lending_fUSD_20251210
["ID","MTS","AMOUNT","RATE_DAILY","PERIOD"]
[398108856,1765377032716,-500.0,0.00016999,2]
[398108857,1765377032726,-500.0,0.00016999,2]
[398108858,1765377032735,-500.0,0.00016999,2]
[398108859,1765377032744,-500.0,0.00016999,2]
[398108860,1765377032752,-500.0,0.00016999,2]
[398108861,1765377032761,-500.0,0.00016999,2]
[398108862,1765377032770,-500.0,0.00016999,2]
[398108863,1765377032779,-309.56447997,0.00016999,2]
[398108864,1765377032788,-500.0,0.00016999,2]
[398108865,1765377032797,-500.0,0.00016999,2]
[398108866,1765377032806,-66201.07648432,0.00017,2]
[398108867,1765377032817,-1795.22834089,0.00017,2]
[398108868,1765377032828,-705.17575911,0.00017,2]
[398108913,1765377038397,-500.0,0.00016999,2]
[398108914,1765377038411,-11761.01987283,0.00017,2]
[398108915,1765377038424,-4141.776292,0.00017,2]
[398108916,1765377038437,-619.3089963,0.00017,2]
[398108917,1765377038450,-7477.4,0.00017,2]
[398108918,1765377038462,-987.18610805,0.00017,2]
[398108919,1765377038475,-499.98868071,0.00017,2]
[398108920,1765377038487,-3160.72030952,0.00017,2]
[398108921,1765377038501,-1581.00624627,0.00017,2]
[398108922,1765377038514,-2254.83934015,0.00017,2]
[398108923,1765377038557,-996694.01713762,0.00017,2]
[398108924,1765377038568,-10721.59840459,0.00017073,2]
[398108925,1765377038579,-651.71554685,0.00017173,2]
[398108926,1765377038590,-500.0,0.00017273,2]
[398108927,1765377038602,-500.0,0.00017273,2]
[398108928,1765377038613,-280.93458704,0.00017547,2]
[398108929,1765377038624,-9500.05522081,0.00017672,2]
[398108930,1765377038635,-651.71554683,0.00017673,2]
[398108932,1765377038646,-175.32956156,0.00017772,2]
[398108934,1765377038657,-180.0,0.00017796,2]
[398108935,1765377038667,-250.0,0.00017819,2]
[398108936,1765377038678,-500.0,0.00017872,2]
[398108937,1765377038689,-501.23326642,0.00017873,2]
[398108938,1765377038699,-500.97359392,0.00017873,2]
[398108939,1765377038711,-500.0,0.00017873,2]
[398108940,1765377038722,-500.0,0.00017873,2]
[398108941,1765377038732,-500.0,0.00017873,2]
[398108942,1765377038743,-500.0,0.00017873,2]
[398108943,1765377038754,-500.0,0.00017873,2]
[398108944,1765377038765,-500.0,0.00017873,2]
[398108945,1765377038775,-500.0,0.00017873,2]
[398108948,1765377038787,-500.28821444,0.00017873,2]
[398108950,1765377038798,-500.42181547,0.00017873,2]
[398108953,1765377038809,-500.0,0.00017873,2]
[398108955,1765377038819,-398.77320291,0.00017873,2]
[398108957,1765377038830,-500.0,0.00017873,2]
[398108959,1765377038841,-500.55652746,0.00017873,2]
[398108961,1765377038852,-500.0,0.00017873,2]
[398108963,1765377038862,-500.0,0.00017873,2]
[398108965,1765377038873,-500.0,0.00017873,2]
[398108967,1765377038884,-500.0,0.00017873,2]
[398108969,1765377038896,-500.54459625,0.00017873,2]
[398108971,1765377038908,-433.07376589,0.00017873,2]
[398108973,1765377038919,-500.0,0.00017873,2]
[398108976,1765377038931,-500.0,0.00017873,2]
[398108978,1765377038942,-207.1558334,0.00017973,2]
[398108980,1765377038953,-171.39,0.0001799,3]
[398108982,1765377038964,-514.21,0.0001799,3]
[398108984,1765377038975,-230.30466521,0.0001799,2]
[398108986,1765377038987,-500.0,0.00017999,2]
[398108988,1765377038998,-500.0,0.00017999,2]
[398108990,1765377039008,-500.0,0.00017999,2]
[398108992,1765377039020,-500.0,0.00017999,2]
[398108994,1765377039035,-500.0,0.00017999,2]
[398108996,1765377039046,-500.0,0.00017999,2]
[398108998,1765377039056,-500.0,0.00017999,2]
[398109000,1765377039068,-500.0,0.00017999,2]
[398109002,1765377039079,-500.0,0.00017999,2]
[398109004,1765377039089,-500.0,0.00017999,2]
[398109005,1765377039099,-500.0,0.00017999,2]
[398109006,1765377039112,-500.0,0.00017999,2]
[398109007,1765377039122,-500.0,0.00017999,2]
[398109008,1765377039135,-500.0,0.00017999,2]
[398109009,1765377039146,-679052.65266282,0.00018,2]
[398109010,1765377039166,-1120.43290127,0.00018,2]
[398109011,1765377039180,-817.73401252,0.00018,2]
[398109012,1765377039191,-651.71554683,0.00018173,2]
[398109013,1765377039202,-500.0,0.00018273,2]
[398109014,1765377039211,-500.0,0.00018273,2]
[398109015,1765377039222,-225.46,0.00018273,2]
[398109016,1765377039233,-500.0,0.00018273,2]
[398109017,1765377039243,-500.0,0.00018273,2]
[398109018,1765377039254,-395.84,0.00018273,2]
[398109019,1765377039265,-500.0,0.00018273,2]
[398109020,1765377039276,-1000.0,0.0001834,2]
[398109021,1765377039287,-250.0,0.0001842,2]
[398109022,1765377039298,-500.0,0.00018547,2]
[398109023,1765377039308,-150.84,0.000188,2]
[398109024,1765377039318,-150.84,0.000188,2]
[398109025,1765377039328,-150.84,0.000188,2]
[398109026,1765377039338,-150.84,0.000188,2]
[398109027,1765377039348,-150.84,0.000188,2]
[398109028,1765377039358,-150.84,0.000188,2]
[398109029,1765377039369,-150.84,0.000188,2]
[398109030,1765377039378,-150.84,0.000188,2]
[398109031,1765377039388,-150.84,0.000188,2]
[398109032,1765377039400,-150.84,0.000188,2]
[398109033,1765377039410,-150.84,0.000188,2]
[398109034,1765377039421,-150.84,0.000188,2]
[398109035,1765377039431,-500.0,0.00018821,2]
[398109036,1765377039440,-150.84,0.0001899,2]
[398109037,1765377039450,-150.84,0.0001899,2]
[398109038,1765377039460,-150.84,0.0001899,2]
[398109039,1765377039471,-150.84,0.0001899,2]
[398109040,1765377039481,-150.84,0.0001899,2]
[398109041,1765377039491,-150.84,0.0001899,2]
[398109042,1765377039502,-150.84,0.0001899,2]
[398109043,1765377039512,-150.84,0.0001899,2]
[398109044,1765377039523,-150.84,0.0001899,2]
[398109045,1765377039533,-150.84,0.0001899,2]
[398109046,1765377039545,-150.84,0.0001899,2]
[398109047,1765377039555,-150.84,0.0001899,2]
[398109048,1765377039565,-150.84,0.0001899,2]
[398109049,1765377039575,-143309.9395137,0.00019,2]
[398109050,1765377039588,-10992.39539457,0.00019,2]
[398109051,1765377039600,-10507.07940039,0.00019,2]
[398109056,1765377040431,-80640.48713625,0.00019,2]
[398109057,1765377040446,-11501.23238523,0.00019,2]
[398109058,1765377040458,-13619.9824885,0.00019,2]
[398109059,1765377040468,-1797.98,0.00019,2]
[398109060,1765377040486,-467.07892601,0.00019,2]
[398109061,1765377040497,-1831.44,0.00019,2]
[398109062,1765377040508,-4314.1106964,0.00019,2]
[398109063,1765377040641,-165.42190652,0.00019,2]
[398109064,1765377040658,-282.51293064,0.00019,2]
[398109065,1765377040670,-8816.88488096,0.00019,2]
[398109066,1765377040797,-456443.34471538,0.00019,2]
[398109067,1765377040813,-151.0,0.00019,2]
[398109068,1765377040824,-151.0,0.00019,2]
[398109069,1765377040835,-151.0,0.00019,2]
[398109070,1765377040845,-151.0,0.00019,2]
[398109071,1765377040855,-151.0,0.00019,2]
[398109072,1765377040864,-151.0,0.00019,2]
[398109073,1765377040874,-151.0,0.00019,2]
[398109074,1765377040883,-151.0,0.00019,2]
[398109075,1765377040893,-265.281221,0.00019,2]
[398109076,1765377040903,-151.0,0.00019,2]
[398109077,1765377040913,-151.0,0.00019,2]
[398109078,1765377040924,-219.49518,0.00019,2]
[398109079,1765377040934,-219.49518,0.00019,2]
[398109080,1765377040945,-219.49518,0.00019,2]
[398109081,1765377040955,-219.49518,0.00019,2]
[398109082,1765377040966,-152.446656,0.00019,2]
[398109083,1765377040976,-151.0,0.00019,2]
[398109084,1765377040987,-151.0,0.00019,2]
[398109085,1765377040996,-151.0,0.00019,2]
[398109086,1765377041007,-151.0,0.00019,2]
[398109087,1765377041017,-173.637821,0.00019,2]
[398109088,1765377041029,-151.0,0.00019,2]
[398109089,1765377041042,-151.29016,0.00019,2]
[398109090,1765377041052,-213.313797,0.00019,2]
[398109091,1765377041063,-151.0,0.00019,2]
[398109092,1765377041074,-213.313797,0.00019,2]
[398109093,1765377041084,-213.313797,0.00019,2]
[398109094,1765377041094,-213.313797,0.00019,2]
[398109095,1765377041103,-435.562446,0.00019,2]
[398109096,1765377041113,-435.562446,0.00019,2]
[398109097,1765377041122,-151.0,0.00019,2]
[398109098,1765377041131,-435.562446,0.00019,2]
[398109099,1765377041141,-151.0,0.00019,2]
[398109100,1765377041150,-435.562446,0.00019,2]
[398109101,1765377041162,-151.0,0.00019,2]
[398109102,1765377041171,-151.0,0.00019,2]
[398109103,1765377041181,-151.0,0.00019,2]
[398109104,1765377041190,-499.562595,0.00019,2]
[398109105,1765377041200,-499.562595,0.00019,2]
[398109106,1765377041209,-164.161008,0.00019,2]
[398109107,1765377041219,-499.562595,0.00019,2]
[398109108,1765377041229,-164.161008,0.00019,2]
[398109109,1765377041238,-499.562595,0.00019,2]
[398109110,1765377041248,-164.161008,0.00019,2]
[398109111,1765377041258,-164.161008,0.00019,2]
[398109112,1765377041268,-151.0,0.00019,2]
[398109113,1765377041277,-1000.0,0.00019028,2]
[398109114,1765377041287,-500.0,0.00019095,2]
[398109115,1765377041297,-342.78,0.0001936,3]
[398109116,1765377041307,-500.0,0.00019369,2]
[398109117,1765377041317,-285.86776854,0.00019643,2]
[398109118,1765377041327,-1000.0,0.00019715,2]
[398109119,1765377041337,-1000.0,0.0002,7]
[398109120,1765377041348,-9500.05522072,0.00020142,2]
[398109121,1765377041357,-1000.0,0.00020403,2]
[398109122,1765377041367,-6574.39023713,0.00020543,2]
[398109123,1765377041377,-1000.0,0.00021091,2]
[398109124,1765377041386,-175.32956153,0.00021154,2]
[398109125,1765377041396,-150.0,0.000214,7]
[398109126,1765377041406,-3311.42359985,0.00021885,2]
[398109127,1765377043426,-854.55749319,0.00019607,2]
[398109128,1765377043439,-9867.04091131,0.00019607,2]
[398109129,1765377043449,-1099.21640015,0.00021885,2]
[398109130,1765377043459,-150.84,0.00021908,2]
[398109131,1765377043469,-500.0,0.00021918,4]
[398109132,1765377043479,-500.0,0.00021918,4]
[398109133,1765377043489,-500.0,0.00021918,4]
[398109134,1765377043499,-500.0,0.00021918,4]
[398109135,1765377043508,-500.0,0.00021918,4]
[398109136,1765377043519,-500.0,0.00021918,4]
[398109137,1765377043528,-500.0,0.00021918,4]
[398109138,1765377043538,-500.0,0.00021918,4]
[398109139,1765377043548,-500.0,0.00021918,4]
[398109140,1765377043558,-500.0,0.00021918,4]
[398109141,1765377043568,-5733.21,0.00022,7]
[398109142,1765377043577,-500.0,0.00022192,2]
[398109143,1765377043587,-195.41,0.00022404,2]
[398109144,1765377043596,-9500.05522072,0.00022612,2]
[398109145,1765377043606,-500.0,0.000245,2]
[398109146,1765377043615,-175.32956153,0.00024537,2]
[398109147,1765377043625,-5000.0,0.0002455,2]
[398109148,1765377043635,-153.0,0.00024658,2]
[398109149,1765377043645,-153.0,0.00024658,2]
[398109150,1765377043654,-153.0,0.00024658,2]
[398109151,1765377043664,-153.0,0.00024658,2]
[398109152,1765377043674,-66.12210298,0.00024658,2]
[398109158,1765377043826,-86.87789702,0.00024658,2]
[398109160,1765377043836,-153.0,0.00024658,2]
[398109162,1765377043845,-1000.0,0.00024658,2]
[398109164,1765377043855,-153.0,0.00024658,2]
[398109166,1765377043865,-153.0,0.00024658,2]
[398109167,1765377043874,-153.0,0.00024658,2]
[398109169,1765377043889,-153.0,0.00024658,2]
[398109170,1765377043898,-1395.15077052,0.00024718,2]
[398109171,1765377043909,-200.0,0.00024755,2]
[398109173,1765377043918,-163.8076228,0.00024756,8]
[398109175,1765377043928,-5000.0,0.00024771,2]
[398109176,1765377043937,-150.84,0.0002479,2]
[398109177,1765377043947,-150.84,0.0002479,2]
[398109179,1765377043957,-150.84,0.0002479,2]
[398109180,1765377043966,-150.84,0.0002479,2]
[398109181,1765377043976,-150.84,0.0002479,2]
[398109182,1765377043985,-150.84,0.0002479,2]
[398109183,1765377043995,-150.84,0.0002479,2]
[398109184,1765377044009,-150.84,0.0002479,2]
[398109185,1765377044018,-14663.60832966,0.000248,3]
[398109186,1765377044038,-648.93851997,0.000248,3]
[398109187,1765377044050,-466.7936093,0.000248,3]
[398109188,1765377044062,-3411.37260033,0.000248,3]
[398109189,1765377044075,-3681.900821,0.000248,3]
[398109190,1765377044087,-1288.95483898,0.000248,3]
[398109191,1765377044099,-551.27276786,0.000248,3]
[398109192,1765377044113,-1292.21190686,0.000248,3]
[398109193,1765377044124,-1563.12270322,0.000248,3]
[398109194,1765377044138,-1650.68809694,0.000248,3]
[398109195,1765377044150,-906.71773945,0.000248,3]
[398109196,1765377044162,-877.07771091,0.000248,3]
[398109197,1765377044174,-646.42884515,0.000248,3]
[398109198,1765377044186,-480.14190281,0.000248,3]
[398109199,1765377044198,-457.10686771,0.000248,3]
[398109207,1765377046282,-11046.44933814,0.000248,3]
[398109208,1765377046333,-474.4368,0.000248,3]
[398109209,1765377046377,-794.30477733,0.000248,3]
[398109210,1765377046418,-4400.33003597,0.000248,3]
[398109211,1765377046430,-104908.70570638,0.000248,3]
[398109227,1765377628242,509.07,0.00013699,2]
[398109413,1765378231528,-180.21,0.00016,2]
[398109414,1765378231539,-284.0,0.00016,2]
[398109415,1765378231548,-1200.0,0.00016998,2]
[398109416,1765378231557,-1200.0,0.00016998,2]
[398109417,1765378231566,-500.0,0.00016999,2]
[398109418,1765378231575,-210.92,0.00016999,2]
[398109419,1765378231584,-500.0,0.00016999,2]
[398109420,1765378231594,-500.0,0.00016999,2]
[398109421,1765378231603,-500.0,0.00016999,2]
[398109422,1765378231613,-500.0,0.00016999,2]
[398109423,1765378231623,-500.0,0.00016999,2]
[398109424,1765378231632,-500.0,0.00016999,2]
[398109425,1765378231641,-500.0,0.00016999,2]
[398109426,1765378231650,-500.0,0.00016999,2]
[398109427,1765378231660,-500.0,0.00016999,2]
[398109428,1765378231669,-500.0,0.00016999,2]
[398109429,1765378231678,-500.0,0.00016999,2]
[398109430,1765378231688,-500.0,0.00016999,2]
[398109431,1765378231697,-500.0,0.00016999,2]
[398109432,1765378231706,-210.09131122,0.00016999,2]
[398109434,1765378231715,-500.0,0.00016999,2]
[398109436,1765378231725,-500.0,0.00016999,2]
[398109438,1765378231734,-500.0,0.00016999,2]
[398109439,1765378231743,-500.0,0.00016999,2]
[398109440,1765378231753,-500.0,0.00016999,2]
[398109441,1765378231762,-500.0,0.00016999,2]
[398109443,1765378231771,-500.0,0.00016999,2]
[398109445,1765378231780,-500.0,0.00016999,2]
[398109447,1765378231789,-637.01274501,0.00016999,2]
[398109449,1765378231798,-500.0,0.00016999,2]
[398109451,1765378231808,-500.0,0.00016999,2]
[398109454,1765378231816,-500.0,0.00016999,2]
[398109457,1765378231825,-566.48257057,0.00016999,2]
[398109459,1765378231834,-500.0,0.00016999,2]
[398109462,1765378231843,-500.0,0.00016999,2]
[398109465,1765378231853,-500.0,0.00016999,2]
[398109468,1765378231862,-500.0,0.00016999,2]
[398109471,1765378231870,-500.0,0.00016999,2]
[398109473,1765378231879,-500.0,0.00016999,2]
[398109475,1765378231888,-500.0,0.00016999,2]
[398109477,1765378231897,-500.0,0.00016999,2]
[398109479,1765378231907,-500.0,0.00016999,2]
[398109481,1765378231916,-500.0,0.00016999,2]
[398109483,1765378231925,-500.0,0.00016999,2]
[398109485,1765378231934,-500.0,0.00016999,2]
[398109487,1765378231943,-500.0,0.00016999,2]
[398109489,1765378231952,-500.0,0.00016999,2]
[398109491,1765378231961,-500.0,0.00016999,2]
[398109493,1765378231970,-500.0,0.00016999,2]
[398109495,1765378231979,-502.90923973,0.00016999,2]
[398109497,1765378231988,-284.79358963,0.00016999,2]
[398109499,1765378231997,-500.0,0.00016999,2]
[398109501,1765378232006,-500.0,0.00016999,2]
[398109503,1765378232015,-500.0,0.00016999,2]
[398109505,1765378232024,-500.0,0.00016999,2]
[398109507,1765378232033,-500.0,0.00016999,2]
[398109509,1765378232043,-500.0,0.00016999,2]
[398109511,1765378232054,-500.0,0.00016999,2]
[398109513,1765378232064,-502.99856579,0.00016999,2]
[398109515,1765378232073,-500.0,0.00016999,2]
[398109517,1765378232082,-286.08121204,0.00016999,2]
[398109518,1765378232092,-500.0,0.00016999,2]
[398109519,1765378232102,-500.0,0.00016999,2]
[398109520,1765378232111,-500.0,0.00016999,2]
[398109521,1765378232121,-425.00785467,0.00016999,2]
[398109522,1765378232131,-500.0,0.00016999,2]
[398109523,1765378232142,-500.44674638,0.00016999,2]
[398109524,1765378232152,-500.0,0.00016999,2]
[398109525,1765378232162,-500.0,0.00016999,2]
[398109526,1765378232173,-500.0,0.00016999,2]
[398109536,1765378232417,-500.0,0.00016999,2]
[398109538,1765378232428,-500.0,0.00016999,2]
[398109540,1765378232439,-519.78712064,0.00016999,2]
[398109543,1765378232449,-500.0,0.00016999,2]
[398109545,1765378232458,-500.0,0.00016999,2]
[398109546,1765378232468,-500.0,0.00016999,2]
[398109548,1765378232478,-503.1213479,0.00016999,2]
[398109551,1765378232488,-500.0,0.00016999,2]
[398109553,1765378232498,-500.0,0.00016999,2]
[398109555,1765378232507,-500.0,0.00016999,2]
[398109557,1765378232516,-500.0,0.00016999,2]
[398109559,1765378232526,-500.0,0.00016999,2]
[398109561,1765378232535,-515.36,0.00016999,2]
[398109563,1765378232544,-500.0,0.00016999,2]
[398109565,1765378232553,-500.0,0.00016999,2]
[398109567,1765378232562,-500.0,0.00016999,2]
[398109568,1765378232571,-500.0,0.00016999,2]
[398109570,1765378232580,-500.0,0.00016999,2]
[398109572,1765378232589,-500.0,0.00016999,2]
[398109574,1765378232599,-500.0,0.00016999,2]
[398109576,1765378232608,-500.0,0.00016999,2]
[398109579,1765378232618,-500.0,0.00016999,2]
[398109581,1765378232627,-500.0,0.00016999,2]
[398109583,1765378232637,-500.0,0.00016999,2]
[398109585,1765378232646,-500.0,0.00016999,2]
[398109586,1765378232655,-500.0,0.00016999,2]
[398109588,1765378232665,-500.0,0.00016999,2]
[398109590,1765378232673,-500.0,0.00016999,2]
[398109592,1765378232683,-500.0,0.00016999,2]
[398109594,1765378232691,-500.0,0.00016999,2]
[398109596,1765378232700,-500.0,0.00016999,2]
[398109598,1765378232710,-500.0,0.00016999,2]
[398109600,1765378232719,-500.0,0.00016999,2]
[398109601,1765378232729,-500.0,0.00016999,2]
[398109602,1765378232739,-500.0,0.00016999,2]
[398109603,1765378232750,-506.88813229,0.00016999,2]
[398109604,1765378232760,-500.0,0.00016999,2]
[398109605,1765378232770,-500.0,0.00016999,2]
[398109606,1765378232779,-500.0,0.00016999,2]
[398109607,1765378232788,-500.0,0.00016999,2]
[398109608,1765378232797,-502.31378629,0.00016999,2]
[398109609,1765378232806,-625.35978381,0.00016999,2]
[398109610,1765378232816,-500.0,0.00016999,2]
[398109611,1765378232832,-500.0,0.00016999,2]
[398109612,1765378232841,-500.0,0.00016999,2]
[398109613,1765378232852,-500.0,0.00016999,2]
[398109614,1765378232861,-500.0,0.00016999,2]
[398109615,1765378232871,-500.0,0.00016999,2]
[398109616,1765378232880,-500.0,0.00016999,2]
[398109617,1765378232890,-500.0,0.00016999,2]
[398109618,1765378232899,-200.43244966,0.00016999,2]
[398109619,1765378232912,-299.56755034,0.00016999,2]
[398109620,1765378232922,-501.23715344,0.00016999,2]
[398109621,1765378232931,-250.76057262,0.00016999,2]
[398109622,1765378232949,-249.23942738,0.00016999,2]
[398109623,1765378232959,-500.0,0.00016999,2]
[398109624,1765378232968,-140.01362428,0.00016999,2]
[398109625,1765378232979,-351.08366183,0.00016999,2]
[398109626,1765378232991,-8.90271389,0.00016999,2]
[398109627,1765378233000,-500.0,0.00016999,2]
[398109628,1765378233009,-163.22,0.00016999,2]
[398109629,1765378233020,-307.91170172,0.00016999,2]
[398109630,1765378233029,-276.67649977,0.00016999,2]
[398109631,1765378233039,-270.79738182,0.00016999,2]
[398109632,1765378233049,-482.48864856,0.00016999,2]
[398109633,1765378233059,-500.0,0.00016999,2]
[398109634,1765378233068,-500.0,0.00016999,2]
[398109635,1765378233078,-500.0,0.00016999,2]
[398109636,1765378233087,-500.0,0.00016999,2]
[398109637,1765378233097,-560.66648046,0.00016999,2]
[398109638,1765378233107,-500.0,0.00016999,2]
[398109639,1765378233116,-500.0,0.00016999,2]
[398109640,1765378233126,-241.67493072,0.00016999,2]
[398109641,1765378233137,-500.0,0.00016999,2]
[398109642,1765378233147,-506.37235227,0.00016999,2]
[398109643,1765378233157,-500.0,0.00016999,2]
[398109644,1765378233167,-500.0,0.00016999,2]
[398109645,1765378233177,-500.0,0.00016999,2]
[398109646,1765378233187,-500.0,0.00016999,2]
[398109647,1765378233197,-500.0,0.00016999,2]
[398109648,1765378233206,-500.0,0.00016999,2]
[398109649,1765378233215,-500.0,0.00016999,2]
[398109650,1765378233226,-500.0,0.00016999,2]
[398109651,1765378233235,-500.0,0.00016999,2]
[398109652,1765378233245,-500.0,0.00016999,2]
[398109653,1765378233255,-500.0,0.00016999,2]
[398109654,1765378233265,-500.0,0.00016999,2]
[398109655,1765378233275,-500.0,0.00016999,2]
[398109656,1765378233284,-597.16,0.00016999,2]
[398109657,1765378233294,-500.0,0.00016999,2]
[398109658,1765378233304,-500.0,0.00016999,2]
[398109659,1765378233314,-500.0,0.00016999,2]
[398109660,1765378233324,-210.92,0.00017273,2]
[398109661,1765378233334,-500.0,0.00017273,2]
[398109662,1765378233344,-500.0,0.00017273,2]
[398109663,1765378233358,-500.0,0.00017273,2]
[398109664,1765378233367,-500.0,0.00017273,2]
[398109665,1765378233377,-500.0,0.00017273,2]
[398109666,1765378233387,-153.46529357,0.00017273,2]
[398109667,1765378233400,-500.0,0.00017273,2]
[398109668,1765378233409,-604.6,0.00017273,2]
[398109669,1765378233419,-304.168,0.00017273,2]
[398109670,1765378233428,-247.73741513,0.00017273,2]
[398109671,1765378233438,-500.0,0.00017273,2]
[398109672,1765378233447,-500.0,0.00017273,2]
[398109673,1765378233457,-280.01512594,0.00017273,2]
[398109674,1765378233467,-274.92,0.00017273,2]
[398109675,1765378233477,-500.0,0.00017273,2]
[398109676,1765378233486,-500.0,0.00017273,2]
[398109677,1765378233495,-500.0,0.00017273,2]
[398109678,1765378233504,-539.54880312,0.00017273,2]
[398109679,1765378233514,-500.0,0.00017273,2]
[398109680,1765378233523,-500.0,0.00017273,2]
[398109681,1765378233533,-531.2720263,0.00017273,2]
[398109682,1765378233542,-500.0,0.00017273,2]
[398109683,1765378233551,-500.0,0.00017273,2]
[398109684,1765378233562,-500.0,0.00017273,2]
[398109685,1765378233571,-562.58118347,0.00017273,2]
[398109686,1765378233580,-500.0,0.00017273,2]
[398109687,1765378233589,-500.0,0.00017547,2]
[398109688,1765378233600,-401.90104446,0.00017547,2]
[398109689,1765378233610,-500.0,0.00017547,2]
[398109690,1765378233620,-507.35764563,0.00017547,2]
[398109691,1765378233629,-321.21423925,0.00017547,2]
[398109692,1765378233639,-500.0,0.00017547,2]
[398109693,1765378233648,-500.0,0.00017547,2]
[398109694,1765378233657,-500.0,0.00017547,2]
[398109695,1765378233666,-500.0,0.00017821,2]
[398109696,1765378233675,-500.0,0.00017821,2]
[398109697,1765378233684,-500.0,0.00017821,2]
[398109698,1765378233694,-500.0,0.00017821,2]
[398109699,1765378233703,-500.0,0.00017999,2]
[398109700,1765378233712,-500.0,0.00017999,2]
[398109701,1765378233721,-500.0,0.00017999,2]
[398109702,1765378233731,-500.0,0.00018095,2]
[398109703,1765378233740,-500.0,0.00018095,2]
[398109704,1765378233749,-500.0,0.00018095,2]
[398109705,1765378233759,-503.76110755,0.00018095,2]
[398109706,1765378233768,-190.33935059,0.00018369,2]
[398109707,1765378233777,-500.0,0.00018369,2]
[398109708,1765378233787,-500.0,0.00018369,2]
[398109709,1765378233796,-500.0,0.00018643,2]
[398109710,1765378233805,-500.0,0.00018643,2]
[398109711,1765378233814,-1200.0,0.00018658,2]
[398109712,1765378233823,-250.0,0.00018687,2]
[398109713,1765378233833,-500.0,0.00018917,2]
[398109714,1765378233842,-500.0,0.00018917,2]
[398109715,1765378233852,-500.0,0.00019191,2]
[398109716,1765378233862,-500.0,0.00019191,2]
[398109717,1765378233872,-500.0,0.00019465,2]
[398109718,1765378233881,-166.66,0.00019945,2]
[398109719,1765378233890,-509.07,0.00020187,2]
[398109720,1765378233899,-166.66,0.00020365,2]
[398109721,1765378233908,-181.62,0.0002067,2]
[398109722,1765378233918,-166.66,0.00020784,2]
[398109723,1765378233927,-500.0,0.00020986,2]
[398109724,1765378233936,-166.66,0.00021075,2]
[398109725,1765378233945,-175.4,0.00021158,2]
[398109726,1765378233955,-166.66,0.00021204,2]
[398109727,1765378233964,-166.66,0.00021624,2]
[398109728,1765378233973,-6650.03865454,0.00021657,2]
[398109729,1765378233983,-200.0,0.00021706,2]
[398109730,1765378233992,-9999.99,0.00021757,2]
[398109731,1765378234002,-346.27,0.00021757,2]
[398109732,1765378234011,-1583.11,0.00021757,2]
[398109733,1765378234022,-2706.87,0.00021757,2]
[398109734,1765378234031,-3738.83585552,0.00021757,2]
[398109736,1765378237595,-1961.98414448,0.00021757,2]
[398109737,1765378237607,-620.16,0.00021757,2]
[398109738,1765378237618,-500.0,0.00021863,2]
[398109739,1765378237628,-500.0,0.00021918,4]
[398109740,1765378237638,-500.0,0.00021918,4]
[398109741,1765378237648,-500.0,0.00021918,4]
[398109742,1765378237658,-500.0,0.00021918,4]